[Event "Titled Tuesday Blitz August 15 Late 2023"]
[White "Rastbod, Ali"]
[Black "Nathan, Nitish"]
[WhiteFideId "12567477"]
[BlackFideId "30927870"]
[WhiteElo "2672"]
[BlackElo "2483"]
[Result "1-0"]
[Round "6"]
[TimeControl "180+1"]
[Date "2023.08.15"]
[WhiteClock "0:00:12"]
[BlackClock "0:00:49"]
[Board "37"]

1. Nf3 {[%clk 0:03:00]}  d5 {[%clk 0:02:59]} 2. g3 {[%clk 0:03:01]}  Bf5 {[%clk 0:02:58]} 3. c4 {[%clk 0:03:00]}  c6 {[%clk 0:02:56]} 4. cxd5 {[%clk 0:03:00]}  cxd5 {[%clk 0:02:56]} 5. Qb3 {[%clk 0:03:01]}  Qc7 {[%clk 0:02:45]} 6. Nc3 {[%clk 0:02:46]}  e6 {[%clk 0:02:45]} 7. d3 {[%clk 0:01:55]}  Nc6 {[%clk 0:02:41]} 8. Bf4 {[%clk 0:01:54]}  Qb6 {[%clk 0:02:39]} 9. Qxb6 {[%clk 0:01:47]}  axb6 {[%clk 0:02:40]} 10. Nb5 {[%clk 0:01:47]}  Kd7 {[%clk 0:02:38]} 11. Bg2 {[%clk 0:01:37]}  Nf6 {[%clk 0:02:35]} 12. O-O {[%clk 0:01:35]}  h6 {[%clk 0:02:29]} 13. Rfc1 {[%clk 0:01:22]}  Be7 {[%clk 0:02:26]} 14. Ne5+ {[%clk 0:01:16]}  Nxe5 {[%clk 0:02:25]} 15. Rc7+ {[%clk 0:01:17]}  Ke8 {[%clk 0:02:17]} 16. Bxe5 {[%clk 0:01:18]}  Rg8 {[%clk 0:01:46]} 17. Rxb7 {[%clk 0:01:08]}  Rc8 {[%clk 0:01:45]} 18. Nd6+ {[%clk 0:00:49]}  Bxd6 {[%clk 0:01:44]} 19. Bxd6 {[%clk 0:00:50]}  Nd7 {[%clk 0:01:45]} 20. e4 {[%clk 0:00:50]}  dxe4 {[%clk 0:01:42]} 21. dxe4 {[%clk 0:00:51]}  Bg6 {[%clk 0:01:42]} 22. e5 {[%clk 0:00:51]}  f6 {[%clk 0:01:42]} 23. exf6 {[%clk 0:00:46]}  gxf6 {[%clk 0:01:42]} 24. Re1 {[%clk 0:00:46]}  Kd8 {[%clk 0:01:32]} 25. h4 {[%clk 0:00:31]}  Re8 {[%clk 0:01:31]} 26. Rd1 {[%clk 0:00:29]}  Rg8 {[%clk 0:01:20]} 27. Bf4 {[%clk 0:00:18]}  Be8 {[%clk 0:01:16]} 28. Bxh6 {[%clk 0:00:15]}  Rc2 {[%clk 0:01:16]} 29. Rxb6 {[%clk 0:00:11]}  Bh5 {[%clk 0:01:16]} 30. Rb8+ {[%clk 0:00:08]}  Ke7 {[%clk 0:01:13]} 31. Rxd7+ {[%clk 0:00:07]}  Kxd7 {[%clk 0:01:13]} 32. Rxg8 {[%clk 0:00:08]}  Rxb2 {[%clk 0:01:13]} 33. Be3 {[%clk 0:00:07]}  Rxa2 {[%clk 0:01:12]} 34. g4 {[%clk 0:00:07]}  Bf7 {[%clk 0:01:12]} 35. Rb8 {[%clk 0:00:07]}  Ra4 {[%clk 0:01:09]} 36. f3 {[%clk 0:00:04]}  e5 {[%clk 0:01:05]} 37. Rb7+ {[%clk 0:00:04]}  Ke8 {[%clk 0:01:05]} 38. Rb8+ {[%clk 0:00:04]}  Kd7 {[%clk 0:01:04]} 39. Rb7+ {[%clk 0:00:05]}  Ke8 {[%clk 0:01:04]} 40. g5 {[%clk 0:00:05]}  fxg5 {[%clk 0:01:04]} 41. Bxg5 {[%clk 0:00:06]}  Bg6 {[%clk 0:01:03]} 42. Re7+ {[%clk 0:00:06]}  Kf8 {[%clk 0:01:03]} 43. Rxe5 {[%clk 0:00:07]}  Ra1+ {[%clk 0:01:03]} 44. Kh2 {[%clk 0:00:07]}  Ra2 {[%clk 0:01:03]} 45. Kg3 {[%clk 0:00:08]}  Kg7 {[%clk 0:01:03]} 46. Bh3 {[%clk 0:00:08]}  Ra7 {[%clk 0:01:01]} 47. Bg4 {[%clk 0:00:08]}  Bf7 {[%clk 0:01:00]} 48. h5 {[%clk 0:00:08]}  Ra1 {[%clk 0:00:58]} 49. h6+ {[%clk 0:00:08]}  Kh7 {[%clk 0:00:58]} 50. Bf5+ {[%clk 0:00:08]}  Kg8 {[%clk 0:00:57]} 51. Bf6 {[%clk 0:00:09]}  Rg1+ {[%clk 0:00:53]} 52. Kh2 {[%clk 0:00:08]}  Rg6 {[%clk 0:00:48]} 53. Bxg6 {[%clk 0:00:08]}  Bxg6 {[%clk 0:00:48]} 54. Re7 {[%clk 0:00:09]}  Bf7 {[%clk 0:00:47]} 55. Kg3 {[%clk 0:00:09]}  Bg6 {[%clk 0:00:45]} 56. Rg7+ {[%clk 0:00:09]}  Kh8 {[%clk 0:00:45]} 57. Rxg6+ {[%clk 0:00:09]}  Kh7 {[%clk 0:00:46]} 58. Rg4 {[%clk 0:00:08]}  Kxh6 {[%clk 0:00:44]} 59. Bh4 {[%clk 0:00:09]}  Kh5 {[%clk 0:00:45]} 60. f4 {[%clk 0:00:09]}  Kh6 {[%clk 0:00:45]} 61. f5 {[%clk 0:00:10]}  Kh5 {[%clk 0:00:46]} 62. f6 {[%clk 0:00:11]}  Kh6 {[%clk 0:00:47]} 63. f7 {[%clk 0:00:12]}  Kh5 {[%clk 0:00:48]} 64. Rg5+ {[%clk 0:00:11]}  Kh6 {[%clk 0:00:48]} 65. f8=Q+ {[%clk 0:00:11]}  Kh7 {[%clk 0:00:49]} 66. Qg7# {[%clk 0:00:12]} 1-0


[Site "https://www.chess.com"]

[Event "Titled Tuesday Blitz August 15 Late 2023"]
[White "Kochiev, Ivan"]
[Black "Svane, Rasmus"]
[WhiteFideId "2917890"]
[BlackFideId "4657101"]
[WhiteElo "2571"]
[BlackElo "2951"]
[Result "1-0"]
[Round "6"]
[TimeControl "180+1"]
[Date "2023.08.15"]
[WhiteClock "0:00:13"]
[BlackClock "0:00:20"]
[Board "40"]

1. e4 {[%clk 0:02:52]}  c6 {[%clk 0:02:59]} 2. d4 {[%clk 0:02:52]}  d5 {[%clk 0:03:00]} 3. Nc3 {[%clk 0:02:52]}  dxe4 {[%clk 0:03:00]} 4. Nxe4 {[%clk 0:02:53]}  Nf6 {[%clk 0:03:01]} 5. Nxf6+ {[%clk 0:02:53]}  exf6 {[%clk 0:03:02]} 6. c3 {[%clk 0:02:54]}  Bd6 {[%clk 0:03:03]} 7. Bd3 {[%clk 0:02:55]}  O-O {[%clk 0:03:03]} 8. Ne2 {[%clk 0:02:56]}  Re8 {[%clk 0:03:04]} 9. O-O {[%clk 0:02:56]}  Nd7 {[%clk 0:03:04]} 10. Ng3 {[%clk 0:02:56]}  Nf8 {[%clk 0:03:04]} 11. f4 {[%clk 0:02:56]}  c5 {[%clk 0:02:52]} 12. d5 {[%clk 0:02:45]}  g6 {[%clk 0:02:29]} 13. Ne4 {[%clk 0:02:16]}  Bf5 {[%clk 0:02:28]} 14. Nxd6 {[%clk 0:02:13]}  Qxd6 {[%clk 0:02:27]} 15. Bxf5 {[%clk 0:02:13]}  gxf5 {[%clk 0:02:28]} 16. c4 {[%clk 0:02:06]}  Re4 {[%clk 0:02:27]} 17. b3 {[%clk 0:02:04]}  Rae8 {[%clk 0:02:25]} 18. Qh5 {[%clk 0:01:56]}  b5 {[%clk 0:02:04]} 19. Qxf5 {[%clk 0:01:42]}  bxc4 {[%clk 0:02:03]} 20. bxc4 {[%clk 0:01:43]}  Rxc4 {[%clk 0:02:03]} 21. Bb2 {[%clk 0:01:13]}  Re2 {[%clk 0:02:00]} 22. Qg4+ {[%clk 0:01:12]}  Ng6 {[%clk 0:01:37]} 23. Qxe2 {[%clk 0:01:11]}  Rb4 {[%clk 0:01:04]} 24. Bc3 {[%clk 0:01:10]}  Rb8 {[%clk 0:01:02]} 25. Rae1 {[%clk 0:01:01]}  f5 {[%clk 0:00:57]} 26. Qh5 {[%clk 0:00:50]}  Qxd5 {[%clk 0:00:56]} 27. Qh6 {[%clk 0:00:40]}  f6 {[%clk 0:00:56]} 28. Re7 {[%clk 0:00:15]}  Nxe7 {[%clk 0:00:49]} 29. Qxf6 {[%clk 0:00:16]}  Rb2 {[%clk 0:00:20]} 30. Qg7# {[%clk 0:00:13]} 1-0


[Site "https://www.chess.com"]

[Event "Titled Tuesday Blitz August 15 Late 2023"]
[White "Zierk, Steven"]
[Black "Vovk, Orest"]
[WhiteFideId "2034255"]
[BlackFideId "14113490"]
[WhiteElo "2853"]
[BlackElo "2570"]
[Result "1-0"]
[Round "6"]
[TimeControl "180+1"]
[Date "2023.08.15"]
[WhiteClock "0:01:27"]
[BlackClock "0:00:10"]
[Board "41"]

1. e4 {[%clk 0:03:00]}  g6 {[%clk 0:02:57]} 2. d4 {[%clk 0:03:01]}  Nf6 {[%clk 0:02:56]} 3. e5 {[%clk 0:02:59]}  Nh5 {[%clk 0:02:54]} 4. Be2 {[%clk 0:02:54]}  d6 {[%clk 0:02:53]} 5. Nf3 {[%clk 0:02:54]}  Bg4 {[%clk 0:02:46]} 6. h3 {[%clk 0:02:49]}  Bxf3 {[%clk 0:02:38]} 7. Bxf3 {[%clk 0:02:50]}  Nc6 {[%clk 0:02:37]} 8. O-O {[%clk 0:02:41]}  dxe5 {[%clk 0:02:31]} 9. dxe5 {[%clk 0:02:39]}  Qxd1 {[%clk 0:02:23]} 10. Rxd1 {[%clk 0:02:40]}  Nxe5 {[%clk 0:02:19]} 11. Bxb7 {[%clk 0:02:37]}  Rb8 {[%clk 0:02:17]} 12. Ba6 {[%clk 0:02:25]}  Bg7 {[%clk 0:02:09]} 13. Nc3 {[%clk 0:02:21]}  c6 {[%clk 0:01:32]} 14. a4 {[%clk 0:02:01]}  O-O {[%clk 0:01:26]} 15. f4 {[%clk 0:01:59]}  Rfd8 {[%clk 0:00:57]} 16. Rxd8+ {[%clk 0:01:55]}  Rxd8 {[%clk 0:00:58]} 17. fxe5 {[%clk 0:01:56]}  Bxe5 {[%clk 0:00:57]} 18. Be3 {[%clk 0:01:55]}  Rb8 {[%clk 0:00:48]} 19. Nd1 {[%clk 0:01:41]}  Ng3 {[%clk 0:00:32]} 20. Bd3 {[%clk 0:01:38]}  a5 {[%clk 0:00:30]} 21. Ra3 {[%clk 0:01:36]}  Bxb2 {[%clk 0:00:27]} 22. Nxb2 {[%clk 0:01:29]}  Rxb2 {[%clk 0:00:27]} 23. Rb3 {[%clk 0:01:29]}  Ra2 {[%clk 0:00:26]} 24. Bh6 {[%clk 0:01:27]}  Ra1+ {[%clk 0:00:10]} 25. Kh2 {[%clk 0:01:27]} 1-0


[Site "https://www.chess.com"]

[Event "Titled Tuesday Blitz August 15 Late 2023"]
[White "Kuzmicz, Krystian"]
[Black "Grossboss19"]
[WhiteFideId "1119125"]
[WhiteElo "2796"]
[BlackElo "2556"]
[Result "1-0"]
[Round "6"]
[TimeControl "180+1"]
[Date "2023.08.15"]
[WhiteClock "0:00:13"]
[BlackClock "0:00:00"]
[Board "42"]

1. e4 {[%clk 0:02:23]}  c6 {[%clk 0:02:58]} 2. d4 {[%clk 0:02:23]}  d5 {[%clk 0:02:59]} 3. f3 {[%clk 0:02:23]}  e6 {[%clk 0:02:56]} 4. Be3 {[%clk 0:02:23]}  Nf6 {[%clk 0:02:54]} 5. e5 {[%clk 0:02:22]}  Nfd7 {[%clk 0:02:54]} 6. f4 {[%clk 0:02:22]}  c5 {[%clk 0:02:54]} 7. c3 {[%clk 0:02:19]}  Nc6 {[%clk 0:02:53]} 8. Nf3 {[%clk 0:02:17]}  Qb6 {[%clk 0:02:51]} 9. Qd2 {[%clk 0:02:16]}  f6 {[%clk 0:02:43]} 10. Bd3 {[%clk 0:02:11]}  Be7 {[%clk 0:02:38]} 11. O-O {[%clk 0:02:10]}  O-O {[%clk 0:02:35]} 12. Na3 {[%clk 0:02:01]}  cxd4 {[%clk 0:02:13]} 13. cxd4 {[%clk 0:01:51]}  Nb4 {[%clk 0:02:10]} 14. Bb1 {[%clk 0:01:48]}  Qa6 {[%clk 0:01:57]} 15. Nc2 {[%clk 0:01:42]}  Nxc2 {[%clk 0:01:57]} 16. Qxc2 {[%clk 0:01:42]}  f5 {[%clk 0:01:54]} 17. g4 {[%clk 0:01:42]}  Nb6 {[%clk 0:01:48]} 18. gxf5 {[%clk 0:01:39]}  exf5 {[%clk 0:01:48]} 19. Qf2 {[%clk 0:01:30]}  Be6 {[%clk 0:01:43]} 20. Kh1 {[%clk 0:01:27]}  Kh8 {[%clk 0:01:37]} 21. Rg1 {[%clk 0:01:27]}  Rac8 {[%clk 0:01:32]} 22. Ng5 {[%clk 0:01:19]}  Bxg5 {[%clk 0:01:31]} 23. Rxg5 {[%clk 0:01:18]}  Qa4 {[%clk 0:01:24]} 24. b3 {[%clk 0:01:16]}  Qb5 {[%clk 0:01:18]} 25. Rg1 {[%clk 0:01:13]}  a5 {[%clk 0:01:13]} 26. Qd2 {[%clk 0:01:13]}  Qc6 {[%clk 0:00:54]} 27. Bd3 {[%clk 0:01:10]}  Qc3 {[%clk 0:00:52]} 28. Rac1 {[%clk 0:01:10]}  Qxd2 {[%clk 0:00:50]} 29. Bxd2 {[%clk 0:01:11]}  a4 {[%clk 0:00:43]} 30. Ba5 {[%clk 0:01:10]}  Nd7 {[%clk 0:00:41]} 31. bxa4 {[%clk 0:01:05]}  Ra8 {[%clk 0:00:40]} 32. Bb4 {[%clk 0:00:57]}  Rfc8 {[%clk 0:00:37]} 33. a5 {[%clk 0:00:57]}  Nb8 {[%clk 0:00:27]} 34. Rxc8+ {[%clk 0:00:53]}  Bxc8 {[%clk 0:00:28]} 35. Rc1 {[%clk 0:00:26]}  Nc6 {[%clk 0:00:27]} 36. Bd2 {[%clk 0:00:27]}  Nxd4 {[%clk 0:00:20]} 37. Rc7 {[%clk 0:00:26]}  Ne6 {[%clk 0:00:18]} 38. Re7 {[%clk 0:00:25]}  Kg8 {[%clk 0:00:18]} 39. Bxf5 {[%clk 0:00:24]}  Kf8 {[%clk 0:00:08]} 40. Rxe6 {[%clk 0:00:23]}  Bxe6 {[%clk 0:00:08]} 41. Bxe6 {[%clk 0:00:24]}  d4 {[%clk 0:00:09]} 42. Bd5 {[%clk 0:00:23]}  Rc8 {[%clk 0:00:08]} 43. Bxb7 {[%clk 0:00:19]}  Rc2 {[%clk 0:00:07]} 44. a6 {[%clk 0:00:18]}  Rxa2 {[%clk 0:00:06]} 45. Bb4+ {[%clk 0:00:18]}  Ke8 {[%clk 0:00:05]} 46. Kg1 {[%clk 0:00:15]}  d3 {[%clk 0:00:02]} 47. Kf1 {[%clk 0:00:15]}  Kd8 {[%clk 0:00:01]} 48. Ke1 {[%clk 0:00:12]}  h5 {[%clk 0:00:01]} 49. f5 {[%clk 0:00:12]}  h4 {[%clk 0:00:01]} 50. f6 {[%clk 0:00:12]}  gxf6 {[%clk 0:00:00]} 51. exf6 {[%clk 0:00:13]} 1-0


[Site "https://www.chess.com"]

[Event "Titled Tuesday Blitz August 15 Late 2023"]
[White "Badmatsyrenov, Oleg"]
[Black "Soderstrom, Adrian"]
[WhiteFideId "24115762"]
[BlackFideId "1745786"]
[WhiteElo "2754"]
[BlackElo "2543"]
[Result "0-1"]
[Round "6"]
[TimeControl "180+1"]
[Date "2023.08.15"]
[WhiteClock "0:00:03"]
[BlackClock "0:00:25"]
[Board "44"]

1. e4 {[%clk 0:03:00]}  g6 {[%clk 0:02:55]} 2. d4 {[%clk 0:03:00]}  Nf6 {[%clk 0:02:55]} 3. Nc3 {[%clk 0:03:00]}  d5 {[%clk 0:02:55]} 4. e5 {[%clk 0:03:00]}  Ne4 {[%clk 0:02:55]} 5. Nxe4 {[%clk 0:02:56]}  dxe4 {[%clk 0:02:56]} 6. Bc4 {[%clk 0:02:55]}  c5 {[%clk 0:02:56]} 7. d5 {[%clk 0:02:49]}  Bg7 {[%clk 0:02:55]} 8. f4 {[%clk 0:02:48]}  O-O {[%clk 0:02:47]} 9. Be3 {[%clk 0:02:45]}  b5 {[%clk 0:02:44]} 10. Be2 {[%clk 0:02:39]}  Na6 {[%clk 0:02:39]} 11. c4 {[%clk 0:02:33]}  Bb7 {[%clk 0:02:31]} 12. cxb5 {[%clk 0:02:29]}  Nb4 {[%clk 0:02:32]} 13. Bc4 {[%clk 0:02:17]}  Bxd5 {[%clk 0:02:29]} 14. Bxd5 {[%clk 0:02:11]}  Qxd5 {[%clk 0:02:30]} 15. Qxd5 {[%clk 0:02:10]}  Nxd5 {[%clk 0:02:31]} 16. Kf2 {[%clk 0:01:57]}  Nb4 {[%clk 0:02:25]} 17. Ne2 {[%clk 0:01:49]}  Nd3+ {[%clk 0:02:25]} 18. Kg3 {[%clk 0:01:49]}  Rab8 {[%clk 0:02:18]} 19. a4 {[%clk 0:01:47]}  Rfc8 {[%clk 0:02:12]} 20. b3 {[%clk 0:01:36]}  g5 {[%clk 0:02:11]} 21. fxg5 {[%clk 0:01:26]}  Bxe5+ {[%clk 0:02:11]} 22. Kg4 {[%clk 0:01:26]}  Bxa1 {[%clk 0:02:08]} 23. Rxa1 {[%clk 0:01:27]}  Rd8 {[%clk 0:02:01]} 24. Kf5 {[%clk 0:01:22]}  Nb4 {[%clk 0:01:54]} 25. Kxe4 {[%clk 0:01:19]}  Nc2 {[%clk 0:01:51]} 26. Rc1 {[%clk 0:01:19]}  Nxe3 {[%clk 0:01:51]} 27. Kxe3 {[%clk 0:01:20]}  Rd5 {[%clk 0:01:51]} 28. h4 {[%clk 0:01:16]}  Rbd8 {[%clk 0:01:47]} 29. Nf4 {[%clk 0:01:14]}  Re5+ {[%clk 0:01:47]} 30. Kf3 {[%clk 0:01:14]}  Rd4 {[%clk 0:01:46]} 31. g3 {[%clk 0:01:12]}  Rde4 {[%clk 0:01:38]} 32. Rc3 {[%clk 0:01:10]}  Re1 {[%clk 0:01:38]} 33. b4 {[%clk 0:00:51]}  c4 {[%clk 0:00:47]} 34. Rxc4 {[%clk 0:00:47]}  f5 {[%clk 0:00:43]} 35. gxf6 {[%clk 0:00:44]}  exf6 {[%clk 0:00:44]} 36. Rc3 {[%clk 0:00:20]}  Kf7 {[%clk 0:00:43]} 37. Kg4 {[%clk 0:00:14]}  R1e4 {[%clk 0:00:42]} 38. Rb3 {[%clk 0:00:13]}  h5+ {[%clk 0:00:41]} 39. Kf3 {[%clk 0:00:13]}  Rd4 {[%clk 0:00:38]} 40. Nd3 {[%clk 0:00:07]}  Ree4 {[%clk 0:00:36]} 41. a5 {[%clk 0:00:05]}  Re6 {[%clk 0:00:30]} 42. Nc5 {[%clk 0:00:05]}  Red6 {[%clk 0:00:27]} 43. a6 {[%clk 0:00:03]}  Rb6 {[%clk 0:00:26]} 44. Rc3 {[%clk 0:00:03]}  Rxb4 {[%clk 0:00:25]} 45. Ne4 {[%clk 0:00:03]}  R4xb5 {[%clk 0:00:23]} 46. Rc7+ {[%clk 0:00:03]}  Kg6 {[%clk 0:00:24]} 47. Rxa7 {[%clk 0:00:03]}  Ra5 {[%clk 0:00:24]} 48. Kf4 {[%clk 0:00:03]}  Rf5+ {[%clk 0:00:23]} 49. Ke3 {[%clk 0:00:03]}  Ra5 {[%clk 0:00:24]} 50. Rb7 {[%clk 0:00:03]}  Raxa6 {[%clk 0:00:24]} 51. Rc7 {[%clk 0:00:03]}  Rb3+ {[%clk 0:00:23]} 52. Kf4 {[%clk 0:00:03]}  Raa3 {[%clk 0:00:24]} 53. Re7 {[%clk 0:00:03]}  Rf3# {[%clk 0:00:25]} 0-1


[Site "https://www.chess.com"]

[Event "Titled Tuesday Blitz August 15 Late 2023"]
[White "Jaracz, Pawel"]
[Black "Yurtseven, Melih"]
[WhiteFideId "1102222"]
[BlackFideId "6312160"]
[WhiteElo "2728"]
[BlackElo "2530"]
[Result "1/2-1/2"]
[Round "6"]
[TimeControl "180+1"]
[Date "2023.08.15"]
[WhiteClock "0:00:07"]
[BlackClock "0:00:13"]
[Board "46"]

1. e4 {[%clk 0:02:54]}  e5 {[%clk 0:02:55]} 2. Nf3 {[%clk 0:02:54]}  Nc6 {[%clk 0:02:55]} 3. Bb5 {[%clk 0:02:54]}  a6 {[%clk 0:02:52]} 4. Bxc6 {[%clk 0:02:54]}  dxc6 {[%clk 0:02:51]} 5. O-O {[%clk 0:02:54]}  f6 {[%clk 0:02:49]} 6. d4 {[%clk 0:02:51]}  exd4 {[%clk 0:02:50]} 7. Nxd4 {[%clk 0:02:49]}  c5 {[%clk 0:02:50]} 8. Ne2 {[%clk 0:02:48]}  Qxd1 {[%clk 0:02:51]} 9. Rxd1 {[%clk 0:02:48]}  Bd7 {[%clk 0:02:52]} 10. Nbc3 {[%clk 0:02:46]}  O-O-O {[%clk 0:02:52]} 11. Bf4 {[%clk 0:02:44]}  Ne7 {[%clk 0:02:51]} 12. Bg3 {[%clk 0:02:44]}  h5 {[%clk 0:02:49]} 13. h3 {[%clk 0:02:41]}  h4 {[%clk 0:02:48]} 14. Bh2 {[%clk 0:02:41]}  g5 {[%clk 0:02:49]} 15. f3 {[%clk 0:02:38]}  Bg7 {[%clk 0:02:48]} 16. e5 {[%clk 0:02:26]}  f5 {[%clk 0:02:41]} 17. f4 {[%clk 0:02:17]}  g4 {[%clk 0:02:40]} 18. Kf1 {[%clk 0:02:13]}  g3 {[%clk 0:02:32]} 19. Bg1 {[%clk 0:02:11]}  b6 {[%clk 0:02:33]} 20. a3 {[%clk 0:02:07]}  Bc6 {[%clk 0:02:32]} 21. b4 {[%clk 0:02:06]}  cxb4 {[%clk 0:02:30]} 22. axb4 {[%clk 0:02:06]}  Bb7 {[%clk 0:02:31]} 23. Nd4 {[%clk 0:02:04]}  Rh6 {[%clk 0:02:18]} 24. Nce2 {[%clk 0:01:55]}  Rf8 {[%clk 0:02:15]} 25. c4 {[%clk 0:01:53]}  Bh8 {[%clk 0:02:14]} 26. b5 {[%clk 0:01:51]}  a5 {[%clk 0:02:15]} 27. c5 {[%clk 0:01:50]}  Be4 {[%clk 0:02:00]} 28. Rac1 {[%clk 0:01:48]}  Kb7 {[%clk 0:01:57]} 29. Nc3 {[%clk 0:01:38]}  Ng6 {[%clk 0:01:51]} 30. Be3 {[%clk 0:01:37]}  Nxe5 {[%clk 0:01:45]} 31. fxe5 {[%clk 0:01:35]}  f4 {[%clk 0:01:46]} 32. Nxe4 {[%clk 0:01:34]}  fxe3+ {[%clk 0:01:46]} 33. Ke2 {[%clk 0:01:30]}  Bxe5 {[%clk 0:01:47]} 34. Nf3 {[%clk 0:01:28]}  Bh8 {[%clk 0:01:39]} 35. Rd7 {[%clk 0:01:27]}  Rc8 {[%clk 0:01:29]} 36. cxb6 {[%clk 0:01:21]}  Rxb6 {[%clk 0:01:28]} 37. Nc5+ {[%clk 0:01:14]}  Ka8 {[%clk 0:01:16]} 38. Na6 {[%clk 0:01:12]}  c6 {[%clk 0:01:11]} 39. Rxc6 {[%clk 0:01:06]}  Rbxc6 {[%clk 0:00:31]} 40. bxc6 {[%clk 0:01:05]}  Rxc6 {[%clk 0:00:32]} 41. Rd8+ {[%clk 0:01:01]}  Kb7 {[%clk 0:00:32]} 42. Rxh8 {[%clk 0:01:02]}  Rxa6 {[%clk 0:00:32]} 43. Rxh4 {[%clk 0:00:59]}  a4 {[%clk 0:00:32]} 44. Rb4+ {[%clk 0:00:54]}  Kc6 {[%clk 0:00:32]} 45. Rb1 {[%clk 0:00:40]}  a3 {[%clk 0:00:31]} 46. Kxe3 {[%clk 0:00:40]}  a2 {[%clk 0:00:30]} 47. Ra1 {[%clk 0:00:40]}  Kc5 {[%clk 0:00:31]} 48. h4 {[%clk 0:00:34]}  Kb4 {[%clk 0:00:32]} 49. Ne1 {[%clk 0:00:18]}  Kc3 {[%clk 0:00:32]} 50. Kf4 {[%clk 0:00:13]}  Kb2 {[%clk 0:00:13]} 51. Rxa2+ {[%clk 0:00:13]}  Kxa2 {[%clk 0:00:13]} 52. Nf3 {[%clk 0:00:11]}  Kb3 {[%clk 0:00:14]} 53. h5 {[%clk 0:00:11]}  Kc4 {[%clk 0:00:15]} 54. Kxg3 {[%clk 0:00:10]}  Kd5 {[%clk 0:00:16]} 55. Kf4 {[%clk 0:00:09]}  Ke6 {[%clk 0:00:16]} 56. g4 {[%clk 0:00:09]}  Kf7 {[%clk 0:00:17]} 57. g5 {[%clk 0:00:08]}  Kg7 {[%clk 0:00:18]} 58. Ne5 {[%clk 0:00:08]}  Ra1 {[%clk 0:00:16]} 59. Kg4 {[%clk 0:00:08]}  Rg1+ {[%clk 0:00:15]} 60. Kf5 {[%clk 0:00:07]}  Rf1+ {[%clk 0:00:16]} 61. Ke6 {[%clk 0:00:08]}  Re1 {[%clk 0:00:13]} 62. h6+ {[%clk 0:00:08]}  Kh7 {[%clk 0:00:13]} 63. Kf5 {[%clk 0:00:08]}  Rf1+ {[%clk 0:00:13]} 64. Ke6 {[%clk 0:00:07]}  Re1 {[%clk 0:00:13]} 65. Kf6 {[%clk 0:00:07]}  Rf1+ {[%clk 0:00:13]} 66. Ke6 {[%clk 0:00:07]}  Re1 {[%clk 0:00:13]} 1/2-1/2


[Site "https://www.chess.com"]

[Event "Titled Tuesday Blitz August 15 Late 2023"]
[White "Grebeniuk, Semen"]
[Black "Lamaze, Simon"]
[WhiteFideId "14117509"]
[BlackFideId "36069264"]
[WhiteElo "2525"]
[BlackElo "2722"]
[Result "0-1"]
[Round "6"]
[TimeControl "180+1"]
[Date "2023.08.15"]
[WhiteClock "0:00:55"]
[BlackClock "0:01:16"]
[Board "47"]

1. d4 {[%clk 0:03:00]}  d5 {[%clk 0:02:58]} 2. c4 {[%clk 0:03:00]}  e6 {[%clk 0:02:59]} 3. Nf3 {[%clk 0:02:59]}  Nf6 {[%clk 0:02:59]} 4. cxd5 {[%clk 0:02:58]}  exd5 {[%clk 0:02:59]} 5. Nc3 {[%clk 0:02:59]}  c6 {[%clk 0:02:58]} 6. Bg5 {[%clk 0:02:59]}  Be7 {[%clk 0:02:58]} 7. e3 {[%clk 0:03:00]}  O-O {[%clk 0:02:59]} 8. Qc2 {[%clk 0:03:00]}  Nbd7 {[%clk 0:02:58]} 9. Bd3 {[%clk 0:03:01]}  h6 {[%clk 0:02:58]} 10. Bh4 {[%clk 0:03:00]}  Ne8 {[%clk 0:02:59]} 11. Bg3 {[%clk 0:03:00]}  Bd6 {[%clk 0:02:59]} 12. O-O-O {[%clk 0:03:00]}  Ndf6 {[%clk 0:02:54]} 13. Kb1 {[%clk 0:03:00]}  Be6 {[%clk 0:02:54]} 14. Rc1 {[%clk 0:03:00]}  Rc8 {[%clk 0:02:54]} 15. Ne2 {[%clk 0:02:47]}  b6 {[%clk 0:02:43]} 16. Nf4 {[%clk 0:02:45]}  Bg4 {[%clk 0:02:41]} 17. h3 {[%clk 0:02:45]}  Bd7 {[%clk 0:02:39]} 18. Ne2 {[%clk 0:02:37]}  c5 {[%clk 0:02:39]} 19. dxc5 {[%clk 0:02:36]}  bxc5 {[%clk 0:02:39]} 20. Bxd6 {[%clk 0:02:35]}  Nxd6 {[%clk 0:02:40]} 21. Ng3 {[%clk 0:02:13]}  Qb6 {[%clk 0:02:35]} 22. Ne5 {[%clk 0:02:03]}  Be6 {[%clk 0:02:33]} 23. Bf5 {[%clk 0:01:36]}  Nxf5 {[%clk 0:02:28]} 24. Nxf5 {[%clk 0:01:37]}  Rfe8 {[%clk 0:02:28]} 25. g4 {[%clk 0:01:17]}  d4 {[%clk 0:02:27]} 26. Nc4 {[%clk 0:01:12]}  Bxc4 {[%clk 0:02:23]} 27. Qxc4 {[%clk 0:01:13]}  Ne4 {[%clk 0:02:23]} 28. exd4 {[%clk 0:00:55]}  Nd2+ {[%clk 0:01:16]} 0-1


[Site "https://www.chess.com"]